[Event "Caplin Hastings Masters 2023-24"]
[Site "Hastings"]
[Date "2023.12.29"]
[Round "2.17"]
[White "Rayner, Francis"]
[Black "Cherniaev, Alexander"]
[Result "0-1"]
[ECO "E70"]
[WhiteElo "2035"]
[BlackElo "2381"]
[Annotator "ChessBase"]
[PlyCount "150"]
[EventDate "2023.12.18"]
[EventType "swiss"]
[EventCountry "ENG"]
[SourceTitle "playchess.com"]
[Source "ChessBase"]
[SourceQuality "1"]
[TimeControl "40/6000+30:3000+30"]

1. c4 {[%emt 0:00:06]} g6 {[%emt 0:01:08]} 2. e4 {[%emt 0:03:22]} Bg7 {[%emt 0:00:33]} 3. d4 {[%emt 0:01:15]} d6 {[%emt 0:00:10]} 4. Nc3 {[%emt 0:00:29]} Nf6 {[%emt 0:00:24]} 5. Nge2 {[%emt 0:01:01]} a6 {[%emt 0:04:20]} 6. Ng3 {[%emt 0:05:09]} h5 {[%emt 0:04:29]} 7. Be2 {[%emt 0:03:15]} h4 {[%emt 0:02:31]} 8. Nf1 {[%emt 0:00:52]} c5 {[%emt 0:06:44]} 9. d5 {[%emt 0:05:03]} b5 {[%emt 0:00:22]} 10. cxb5 {[%emt 0:00:46]} Nbd7 {[%emt 0:00:14]} 11. Ne3 {[%emt 0:03:19]} O-O {[%emt 0:04:07]} 12. O-O {[%emt 0:07:06]} axb5 {[%emt 0:02:49]} 13. Bxb5 {[%emt 0:01:42]} h3 {[%emt 0:01:43]} 14. g3 {[%emt 0:00:45]} Ba6 {[%emt 0:00:20]} 15. Bxa6 {[%emt 0:01:38]} Rxa6 {[%emt 0:00:17]} 16. Qe2 {[%emt 0:00:34]} Qa8 {[%emt 0:00:16]} 17. Nc4 {[%emt 0:03:51]} Rb8 {[%emt 0:13:49]} 18. Rd1 {[%emt 0:05:01]} Nb6 {[%emt 0:00:47]} 19. Nxb6 {[%emt 0:08:24]} Raxb6 {[%emt 0:14:03]} 20. Qf1 {[%emt 0:03:05]} Rb4 {[%emt 0:01:51]} 21. f3 {[%emt 0:03:54]} Nd7 {[%emt 0:03:34]} 22. Qxh3 {[%emt 0:02:59]} Bd4+ {[%emt 0:00:09]} 23. Kh1 {[%emt 0:00:28]} Ne5 {[%emt 0:00:06]} 24. Qf1 {[%emt 0:00:55]} Nc4 {[%emt 0:14:36]} 25. a3 {[%emt 0:02:57]} Nxb2 {[%emt 0:00:08]} 26. axb4 {[%emt 0:00:38]} Qxa1 {[%emt 0:00:02]} 27. Bxb2 {[%emt 0:03:50]} Qxb2 {[%emt 0:00:02]} 28. Nb5 {[%emt 0:02:45]} Qxb4 {[%emt 0:08:02]} 29. Nxd4 {[%emt 0:02:59]} cxd4 {[%emt 0:00:07]} 30. Qd3 {[%emt 0:03:55]} Qc3 {[%emt 0:02:46]} 31. Kg2 {[%emt 0:11:08]} Rb2+ {[%emt 0:00:20]} 32. Kh3 {[%emt 0:00:28]} Rf2 {[%emt 0:01:31]} 33. Qxc3 {[%emt 0:09:09]} dxc3 {[%emt 0:00:22]} 34. Rd3 {[%emt 0:00:04]} c2 {[%emt 0:00:49]} 35. Rc3 {[%emt 0:00:03]} Kg7 {[%emt 0:06:15]} 36. Kg4 {[%emt 0:04:06]} Rxh2 {[%emt 0:00:40]} 37. f4 {[%emt 0:04:11]} Rf2 {[%emt 0:07:44]} 38. Rc7 {[%emt 0:01:22]} Kf6 {[%emt 0:00:56]} 39. Rc6 {[%emt 0:00:33]} e6 {[%emt 0:00:51]} 40. Rc7 {[%emt 0:06:14]} e5 {[%emt 0:06:32]} 41. Rc6 {[%emt 0:01:20]} Ke7 {[%emt 0:01:01]} 42. Rc7+ {[%emt 0:02:10]} Kd8 {[%emt 0:00:30]} 43. Rc6 {[%emt 0:00:07]} Kd7 {[%emt 0:01:06]} 44. Rc4 {[%emt 0:01:37]} Rd2 {[%emt 0:11:39]} 45. Rc6 {[%emt 0:04:13]} Rf2 {[%emt 0:10:58]} 46. Rc4 {[%emt 0:02:40]} Ke7 {[%emt 0:00:44]} 47. Rc7+ {[%emt 0:01:44]} Kf6 {[%emt 0:00:38]} 48. Rc6 {[%emt 0:00:57]} Kg7 {[%emt 0:00:42]} 49. Rc7 {[%emt 0:01:42]} Kh6 {[%emt 0:01:14]} 50. Rc8 {[%emt 0:03:38]} Rd2 {[%emt 0:01:20]} 51. fxe5 {[%emt 0:09:13]} dxe5 {[%emt 0:00:06]} 52. d6 {[%emt 0:10:06]} Rf2 {[%emt 0:09:13]} 53. Rh8+ {[%emt 0:01:58]} Kg7 {[%emt 0:00:17]} 54. Rc8 {[%emt 0:00:05]} Rd2 {[%emt 0:04:08]} 55. d7 {[%emt 0:00:29]} Rxd7 {[%emt 0:00:03]} 56. Rxc2 {[%emt 0:00:06]} Rd3 {[%emt 0:00:16]} 57. Re2 {[%emt 0:03:07]} Kf6 {[%emt 0:01:10]} 58. Kh4 {[%emt 0:02:48]} Ke6 {[%emt 0:00:34]} 59. g4 {[%emt 0:01:19]} f5 {[%emt 0:00:42]} 60. gxf5+ {[%emt 0:05:05]} gxf5 {[%emt 0:00:04]} 61. exf5+ {[%emt 0:01:16]} Kxf5 {[%emt 0:00:03]} 62. Rf2+ {[%emt 0:00:17]} Ke4 {[%emt 0:01:18]} 63. Kg4 {[%emt 0:00:34]} Ke3 {[%emt 0:04:00]} 64. Rf8 {[%emt 0:00:38]} e4 {[%emt 0:01:50]} 65. Re8 {[%emt 0:00:23]} Rd1 {[%emt 0:06:08]} 66. Kf5 {[%emt 0:00:54]} Rd4 {[%emt 0:01:33]} 67. Ke5 {[%emt 0:02:06]} Ra4 {[%emt 0:00:18]} 68. Kd5 {[%emt 0:01:57]} Kd3 {[%emt 0:00:13]} 69. Kc5 {[%emt 0:00:59]} e3 {[%emt 0:00:34]} 70. Rd8+ {[%emt 0:00:20]} Kc2 {[%emt 0:00:25]} 71. Re8 {[%emt 0:00:29]} Kd2 {[%emt 0:00:14]} 72. Rd8+ {[%emt 0:00:19]} Ke1 {[%emt 0:00:13]} 73. Rh8 {[%emt 0:00:43]} e2 {[%emt 0:00:08]} 74. Rh1+ {[%emt 0:01:15]} Kd2 {[%emt 0:00:08]} 75. Rh2 {[%emt 0:00:39]} Kd1 {[%emt 0:00:06]} 0-1

[Event "Caplin Hastings Masters 2023-24"]
[Site "Hastings"]
[Date "2023.12.29"]
[Round "2.18"]
[White "Derakhshani, Borna"]
[Black "Weersing, Abigail Riis"]
[Result "1-0"]
[ECO "C11"]
[WhiteElo "2380"]
[BlackElo "2056"]
[Annotator "ChessBase"]
[PlyCount "157"]
[EventDate "2023.12.18"]
[EventType "swiss"]
[EventCountry "ENG"]
[SourceTitle "playchess.com"]
[Source "ChessBase"]
[SourceQuality "1"]
[TimeControl "40/6000+30:3000+30"]

1. e4 {[%emt 0:00:22]} e6 {[%emt 0:00:05]} 2. d4 {[%emt 0:00:13]} d5 {[%emt 0:00:05]} 3. Nc3 {[%emt 0:00:04]} Nf6 {[%emt 0:00:08]} 4. e5 {[%emt 0:00:29]} Nfd7 {[%emt 0:00:06]} 5. f4 {[%emt 0:00:06]} c5 {[%emt 0:00:05]} 6. Nf3 {[%emt 0:00:03]} Nc6 {[%emt 0:00:09]} 7. Be3 {[%emt 0:00:05]} Be7 {[%emt 0:00:06]} 8. Qd2 {[%emt 0:15:11]} O-O {[%emt 0:00:37]} 9. dxc5 {[%emt 0:05:53]} Qa5 {[%emt 0:01:58]} 10. Nb5 {[%emt 0:15:32]} Qxd2+ {[%emt 0:04:52]} 11. Nxd2 {[%emt 0:02:11]} Nxc5 {[%emt 0:11:10]} 12. Be2 {[%emt 0:04:06]} Bd7 {[%emt 0:13:32]} 13. O-O-O {[%emt 0:23:12]} Rfc8 {[%emt 0:07:44]} 14. Kb1 {[%emt 0:01:37]} a6 {[%emt 0:13:01]} 15. Nd6 {[%emt 0:00:56]} Bxd6 {[%emt 0:00:37]} 16. exd6 {[%emt 0:00:04]} b6 {[%emt 0:09:23]} 17. Nf3 {[%emt 0:13:19]} Ne4 {[%emt 0:11:06]} 18. Ne5 {[%emt 0:06:45]} Nxe5 {[%emt 0:00:47]} 19. fxe5 {[%emt 0:00:02]} b5 {[%emt 0:04:22]} 20. Bf3 {[%emt 0:00:49]} Nc5 {[%emt 0:02:50]} 21. Bd4 {[%emt 0:01:06]} a5 {[%emt 0:02:20]} 22. Rhf1 {[%emt 0:01:56]} b4 {[%emt 0:04:07]} 23. Bh5 {[%emt 0:01:27]} Be8 {[%emt 0:03:48]} 24. Rf4 {[%emt 0:02:34]} Ne4 {[%emt 0:01:24]} 25. Be2 {[%emt 0:10:16]} Bd7 {[%emt 0:10:03]} 26. h4 {[%emt 0:00:14]} Rab8 {[%emt 0:02:50]} 27. Bf3 {[%emt 0:00:24]} Nc5 {[%emt 0:01:18]} 28. Rf1 {[%emt 0:00:13]} Bb5 {[%emt 0:01:28]} 29. Rd1 {[%emt 0:00:52]} Bd7 {[%emt 0:00:30]} 30. Bh5 {[%emt 0:01:08]} Be8 {[%emt 0:00:42]} 31. Bxc5 {[%emt 0:03:27]} Rxc5 {[%emt 0:00:01]} 32. d7 {[%emt 0:00:04]} Bxd7 {[%emt 0:00:07]} 33. Bxf7+ {[%emt 0:00:03]} Kh8 {[%emt 0:00:09]} 34. Rdf1 {[%emt 0:00:02]} Rcc8 {[%emt 0:04:11]} 35. Bh5 {[%emt 0:00:20]} Bb5 {[%emt 0:00:58]} 36. R1f2 {[%emt 0:00:03]} h6 {[%emt 0:01:10]} 37. Rf7 {[%emt 0:00:28]} Kh7 {[%emt 0:00:27]} 38. Bg4 {[%emt 0:00:59]} Re8 {[%emt 0:00:26]} 39. Kc1 {[%emt 0:00:00]} a4 {[%emt 0:00:32]} 40. Bh5 {[%emt 0:01:13]} Bc4 {[%emt 0:00:43]} 41. b3 {[%emt 0:04:07]} axb3 {[%emt 0:01:15]} 42. axb3 {[%emt 0:03:27]} Bb5 {[%emt 0:01:07]} 43. R7f4 {[%emt 0:00:24]} Red8 {[%emt 0:12:25]} 44. Rxb4 {[%emt 0:00:28]} d4 {[%emt 0:02:33]} 45. Rd2 {[%emt 0:01:28]} Bc6 {[%emt 0:10:55]} 46. Rxb8 {[%emt 0:00:17]} Rxb8 {[%emt 0:00:01]} 47. Rxd4 {[%emt 0:06:06]} Bxg2 {[%emt 0:00:37]} 48. Rg4 {[%emt 0:01:41]} Bh3 {[%emt 0:01:41]} 49. Bg6+ {[%emt 0:00:04]} Kg8 {[%emt 0:00:50]} 50. Rf4 {[%emt 0:00:36]} Rb5 {[%emt 0:03:36]} 51. Rc4 {[%emt 0:02:53]} Kf8 {[%emt 0:02:55]} 52. Rc8+ {[%emt 0:02:05]} Ke7 {[%emt 0:00:06]} 53. Rc7+ {[%emt 0:00:09]} Kf8 {[%emt 0:07:57]} 54. Rf7+ {[%emt 0:01:57]} Kg8 {[%emt 0:00:06]} 55. Re7 {[%emt 0:00:05]} Rb8 {[%emt 0:00:06]} 56. Kd2 {[%emt 0:03:59]} Rd8+ {[%emt 0:05:37]} 57. Ke3 {[%emt 0:00:53]} Kf8 {[%emt 0:00:28]} 58. Rf7+ {[%emt 0:00:08]} Kg8 {[%emt 0:00:04]} 59. Rc7 {[%emt 0:00:21]} Kf8 {[%emt 0:00:59]} 60. b4 {[%emt 0:01:03]} Bf5 {[%emt 0:03:31]} 61. Bxf5 {[%emt 0:03:33]} exf5 {[%emt 0:00:01]} 62. b5 {[%emt 0:00:10]} Rb8 {[%emt 0:01:11]} 63. c4 {[%emt 0:00:06]} g5 {[%emt 0:00:22]} 64. Rc6 {[%emt 0:01:43]} Kg7 {[%emt 0:03:33]} 65. h5 {[%emt 0:00:08]} f4+ {[%emt 0:00:34]} 66. Kf3 {[%emt 0:00:48]} Re8 {[%emt 0:00:26]} 67. Ke4 {[%emt 0:00:55]} Rf8 {[%emt 0:00:10]} 68. Rg6+ {[%emt 0:00:10]} Kh7 {[%emt 0:00:15]} 69. Rf6 {[%emt 0:00:05]} Rc8 {[%emt 0:00:10]} 70. Kd4 {[%emt 0:02:05]} Rg8 {[%emt 0:00:45]} 71. b6 {[%emt 0:02:42]} g4 {[%emt 0:00:39]} 72. Rxf4 {[%emt 0:00:05]} g3 {[%emt 0:00:05]} 73. Rf1 {[%emt 0:00:04]} Kg7 {[%emt 0:00:29]} 74. c5 {[%emt 0:00:17]} g2 {[%emt 0:00:14]} 75. Rg1 {[%emt 0:00:04]} Kf7 {[%emt 0:00:13]} 76. b7 {[%emt 0:00:04]} Ke6 {[%emt 0:00:26]} 77. Rxg2 {[%emt 0:00:09]} Rd8+ {[%emt 0:00:33]} 78. Ke4 {[%emt 0:00:18]} Rf8 {[%emt 0:01:49]} 79. Rb2 {[%emt 0:00:13]} 1-0

[Event "Caplin Hastings Masters 2023-24"]
[Site "Hastings"]
[Date "2023.12.29"]
[Round "2.19"]
[White "Byrn, Carsten"]
[Black "Arkell, Keith C"]
[Result "0-1"]
[ECO "E41"]
[WhiteElo "1823"]
[BlackElo "2371"]
[Annotator "ChessBase"]
[PlyCount "83"]
[EventDate "2023.12.18"]
[EventType "swiss"]
[EventCountry "ENG"]
[SourceTitle "playchess.com"]
[Source "ChessBase"]
[SourceQuality "1"]
[TimeControl "40/6000+30:3000+30"]

1. d4 {[%emt 0:00:09]} Nf6 {[%emt 0:00:09]} 2. c4 {[%emt 0:00:08]} e6 {[%emt 0:00:09]} 3. Nf3 {[%emt 0:00:11]} Bb4+ {[%emt 0:00:06]} 4. Nc3 {[%emt 0:00:12]} c5 {[%emt 0:00:08]} 5. e3 {[%emt 0:01:06]} Bxc3+ {[%emt 0:00:12]} 6. bxc3 {[%emt 0:00:12]} d6 {[%emt 0:00:03]} 7. Bd2 {[%emt 0:01:26]} Nc6 {[%emt 0:00:08]} 8. Bd3 {[%emt 0:01:22]} e5 {[%emt 0:00:07]} 9. Ng5 {[%emt 0:03:40]} Qe7 {[%emt 0:01:30]} 10. d5 {[%emt 0:06:47]} Nb8 {[%emt 0:00:06]} 11. Ne4 {[%emt 0:02:03]} Nxe4 {[%emt 0:00:08]} 12. Bxe4 {[%emt 0:00:06]} f5 {[%emt 0:00:08]} 13. Bc2 {[%emt 0:00:56]} O-O {[%emt 0:00:45]} 14. O-O {[%emt 0:00:42]} Nd7 {[%emt 0:01:17]} 15. f4 {[%emt 0:00:50]} Nf6 {[%emt 0:00:00]} 16. Qf3 {[%emt 0:02:41]} Bd7 {[%emt 0:01:14]} 17. Rae1 {[%emt 0:00:29]} Rae8 {[%emt 0:01:06]} 18. g3 {[%emt 0:06:54]} Qf7 {[%emt 0:00:53]} 19. Qd1 {[%emt 0:02:49]} Qg6 {[%emt 0:00:50]} 20. Ba4 {[%emt 0:00:55]} Bxa4 {[%emt 0:00:23]} 21. Qxa4 {[%emt 0:00:23]} Ne4 {[%emt 0:00:01]} 22. Qd1 {[%emt 0:06:49]} h5 {[%emt 0:00:32]} 23. Re2 {[%emt 0:02:17]} exf4 {[%emt 0:08:45]} 24. exf4 {[%emt 0:03:14]} Re7 {[%emt 0:00:33]} 25. Rg2 {[%emt 0:02:57]} Rfe8 {[%emt 0:01:07]} 26. Be1 {[%emt 0:01:40]} Qg4 {[%emt 0:00:14]} 27. Qxg4 {[%emt 0:01:25]} hxg4 {[%emt 0:00:04]} 28. Rb2 {[%emt 0:04:26]} b6 {[%emt 0:02:05]} 29. a4 {[%emt 0:00:56]} Nf6 {[%emt 0:00:53]} 30. Bf2 {[%emt 0:01:34]} Re2 {[%emt 0:02:06]} 31. Rfb1 {[%emt 0:02:49]} Rxb2 {[%emt 0:00:07]} 32. Rxb2 {[%emt 0:00:23]} Re4 {[%emt 0:00:10]} 33. a5 {[%emt 0:01:00]} bxa5 {[%emt 0:00:05]} 34. Rb8+ {[%emt 0:01:31]} Kh7 {[%emt 0:00:29]} 35. Rd8 {[%emt 0:10:33]} Rxc4 {[%emt 0:00:44]} 36. Rxd6 {[%emt 0:00:00]} a4 {[%emt 0:05:42]} 37. Ra6 {[%emt 0:00:43]} Nxd5 {[%emt 0:00:26]} 38. Rxa7 {[%emt 0:00:20]} Nxc3 {[%emt 0:00:11]} 39. Ra5 {[%emt 0:02:09]} Ne4 {[%emt 0:02:10]} 40. Be3 {[%emt 0:01:29]} Rc3 {[%emt 0:00:17]} 41. Bxc5 {[%emt 0:52:36]} Nxc5 {[%emt 0:50:06]} 42. Kf2 {[%emt 0:01:10]} 0-1

[Event "Caplin Hastings Masters 2023-24"]
[Site "Hastings"]
[Date "2023.12.29"]
[Round "2.20"]
[White "Unuk, Laura"]
[Black "Han, Qixiang"]
[Result "1-0"]
[ECO "D02"]
[WhiteElo "2345"]
[BlackElo "1711"]
[Annotator "ChessBase"]
[PlyCount "73"]
[EventDate "2023.12.18"]
[EventType "swiss"]
[EventCountry "ENG"]
[SourceTitle "playchess.com"]
[Source "ChessBase"]
[SourceQuality "1"]
[TimeControl "40/6000+30:3000+30"]

1. d4 {[%emt 0:00:05]} d5 {[%emt 0:00:03]} 2. Bf4 {[%emt 0:00:46]} Nf6 {[%emt 0:00:07]} 3. e3 {[%emt 0:00:11]} e6 {[%emt 0:00:21]} 4. Nd2 {[%emt 0:00:55]} c5 {[%emt 0:00:16]} 5. c3 {[%emt 0:00:41]} Bd6 {[%emt 0:00:22]} 6. Bg3 {[%emt 0:01:45]} Nc6 {[%emt 0:00:21]} 7. Ngf3 {[%emt 0:02:07]} Qc7 {[%emt 0:01:05]} 8. dxc5 {[%emt 0:04:23]} Bxg3 {[%emt 0:00:59]} 9. hxg3 {[%emt 0:00:05]} e5 {[%emt 0:05:31]} 10. Qc2 {[%emt 0:08:36]} Be6 {[%emt 0:17:45]} 11. e4 {[%emt 0:08:48]} O-O-O {[%emt 0:03:58]} 12. Bd3 {[%emt 0:15:07]} h6 {[%emt 0:10:44]} 13. O-O {[%emt 0:01:34]} g5 {[%emt 0:03:49]} 14. b4 {[%emt 0:13:17]} Rdg8 {[%emt 0:02:09]} 15. exd5 {[%emt 0:00:51]} Bxd5 {[%emt 0:04:20]} 16. Ne4 {[%emt 0:00:43]} Nxe4 {[%emt 0:02:35]} 17. Bxe4 {[%emt 0:00:05]} Bc4 {[%emt 0:00:45]} 18. Rfd1 {[%emt 0:01:26]} Re8 {[%emt 0:11:30]} 19. Rd6 {[%emt 0:02:25]} a6 {[%emt 0:27:21]} 20. Rad1 {[%emt 0:01:29]} Re7 {[%emt 0:00:15]} 21. Nd2 {[%emt 0:04:33]} Be6 {[%emt 0:01:21]} 22. Qd3 {[%emt 0:00:14]} Na7 {[%emt 0:01:19]} 23. a4 {[%emt 0:01:21]} Kb8 {[%emt 0:00:31]} 24. Nc4 {[%emt 0:02:46]} Bxc4 {[%emt 0:01:47]} 25. Qxc4 {[%emt 0:00:09]} Nc8 {[%emt 0:00:08]} 26. Qd5 {[%emt 0:01:17]} Na7 {[%emt 0:03:33]} 27. Rb6 {[%emt 0:02:54]} Nc8 {[%emt 0:01:14]} 28. Rf6 {[%emt 0:03:00]} h5 {[%emt 0:01:45]} 29. b5 {[%emt 0:01:08]} axb5 {[%emt 0:00:42]} 30. axb5 {[%emt 0:00:05]} Qa5 {[%emt 0:00:10]} 31. b6 {[%emt 0:02:16]} Qxc3 {[%emt 0:02:07]} 32. Rxf7 {[%emt 0:00:14]} Rh7 {[%emt 0:00:26]} 33. Rxh7 {[%emt 0:00:12]} Rxh7 {[%emt 0:00:03]} 34. Bxh7 {[%emt 0:00:05]} h4 {[%emt 0:00:07]} 35. Be4 {[%emt 0:00:07]} Nd6 {[%emt 0:00:44]} 36. Qxd6+ {[%emt 0:00:06]} Ka8 {[%emt 0:00:01]} 37. Qd8# {[%emt 0:00:08]} 1-0

[Event "Caplin Hastings Masters 2023-24"]
[Site "Hastings"]
[Date "2023.12.29"]
[Round "2.21"]
[White "Lishoy Gengis Paratazham, Dildarav"]
[Black "Grutter, Tim"]
[Result "0-1"]
[ECO "A08"]
[WhiteElo "1743"]
[BlackElo "2342"]
[Annotator "ChessBase"]
[PlyCount "34"]
[EventDate "2023.12.18"]
[EventType "swiss"]
[EventCountry "ENG"]
[SourceTitle "playchess.com"]
[Source "ChessBase"]
[SourceQuality "1"]
[TimeControl "40/6000+30:3000+30"]

1. e4 {[%emt 0:00:02]} c5 {[%emt 0:00:20]} 2. d3 {[%emt 0:00:25]} Nc6 {[%emt 0:00:35]} 3. g3 {[%emt 0:00:56]} Nf6 {[%emt 0:00:46]} 4. Bg2 {[%emt 0:00:53]} d5 {[%emt 0:00:08]} 5. Nd2 {[%emt 0:01:24]} Bg4 {[%emt 0:00:48]} 6. Ngf3 {[%emt 0:02:54]} e6 {[%emt 0:00:28]} 7. h3 {[%emt 0:02:34]} Bh5 {[%emt 0:00:31]} 8. O-O {[%emt 0:02:31]} Be7 {[%emt 0:01:08]} 9. c3 {[%emt 0:02:09]} O-O {[%emt 0:02:28]} 10. g4 {[%emt 0:11:18]} Bg6 {[%emt 0:00:07]} 11. Nh4 {[%emt 0:01:11]} dxe4 {[%emt 0:06:58]} 12. Nxg6 {[%emt 0:01:20]} hxg6 {[%emt 0:00:05]} 13. Nxe4 {[%emt 0:03:30]} Nd5 {[%emt 0:08:40]} 14. g5 {[%emt 0:06:18]} Qd7 {[%emt 0:05:20]} 15. Qe2 {[%emt 0:03:01]} Rad8 {[%emt 0:01:43]} 16. Rd1 {[%emt 0:00:49]} e5 {[%emt 0:01:53]} 17. Qf3 {[%emt 0:05:59]} Qc7 {[%emt 0:18:26]} 0-1

[Event "Caplin Hastings Masters 2023-24"]
[Site "Hastings"]
[Date "2023.12.29"]
[Round "2.22"]
[White "Ghasi, Ameet K"]
[Black "Moracchini, Margaux"]
[Result "1-0"]
[ECO "A05"]
[WhiteElo "2509"]
[BlackElo "1922"]
[Annotator "ChessBase"]
[PlyCount "59"]
[EventDate "2023.12.18"]
[EventType "swiss"]
[EventCountry "ENG"]
[SourceTitle "playchess.com"]
[Source "ChessBase"]
[SourceQuality "1"]
[TimeControl "40/6000+30:3000+30"]

1. Nf3 {[%emt 0:01:48]} Nf6 {[%emt 0:01:36]} 2. g3 {[%emt 0:00:08]} g6 {[%emt 0:00:48]} 3. Bg2 {[%emt 0:00:05]} Bg7 {[%emt 0:00:22]} 4. O-O {[%emt 0:00:07]} O-O {[%emt 0:00:04]} 5. d3 {[%emt 0:00:04]} d6 {[%emt 0:03:34]} 6. e4 {[%emt 0:00:05]} c5 {[%emt 0:00:48]} 7. Re1 {[%emt 0:00:55]} Nc6 {[%emt 0:04:12]} 8. c3 {[%emt 0:00:41]} e5 {[%emt 0:16:51]} 9. a4 {[%emt 0:01:14]} d5 {[%emt 0:05:57]} 10. exd5 {[%emt 0:02:29]} Nxd5 {[%emt 0:00:06]} 11. Na3 {[%emt 0:09:09]} Re8 {[%emt 0:06:13]} 12. Nc4 {[%emt 0:09:56]} b6 {[%emt 0:18:18]} 13. Qb3 {[%emt 0:11:52]} Bb7 {[%emt 0:06:16]} 14. Ng5 {[%emt 0:11:43]} Re7 {[%emt 0:10:59]} 15. Ne4 {[%emt 0:07:54]} Rd7 {[%emt 0:02:18]} 16. Ned6 {[%emt 0:18:03]} Rxd6 {[%emt 0:05:37]} 17. Nxd6 {[%emt 0:00:31]} Na5 {[%emt 0:00:22]} 18. Nxb7 {[%emt 0:01:13]} Nxb3 {[%emt 0:01:02]} 19. Nxd8 {[%emt 0:00:07]} Rxd8 {[%emt 0:00:43]} 20. Ra3 {[%emt 0:02:32]} Nxc1 {[%emt 0:00:11]} 21. Rxc1 {[%emt 0:00:04]} Nc7 {[%emt 0:01:08]} 22. Rd1 {[%emt 0:03:32]} c4 {[%emt 0:02:11]} 23. Bf1 {[%emt 0:00:20]} Ne6 {[%emt 0:02:52]} 24. Raa1 {[%emt 0:00:58]} cxd3 {[%emt 0:02:24]} 25. Rxd3 {[%emt 0:00:56]} Rc8 {[%emt 0:00:08]} 26. Rd7 {[%emt 0:00:58]} a5 {[%emt 0:00:26]} 27. Rd6 {[%emt 0:00:16]} Bf8 {[%emt 0:00:20]} 28. Rxb6 {[%emt 0:05:34]} Bc5 {[%emt 0:00:14]} 29. Rb5 {[%emt 0:00:56]} Rd8 {[%emt 0:00:13]} 30. Bc4 {[%emt 0:01:11]} 1-0